{"text_format":"1","workbook":"xlsx","n_sheets":7,"sheets":["受講票（例）","①基本情報（今回の研修に係る事項）","②名簿（受講者情報を入力）","組合員初回","組合員定期","員外初回","員外定期"],"not_rendered":{"charts":0,"images":0,"macros":1,"external_links":0,"defined_names":9,"comments":2,"pivot_tables":0},"unopened":[],"bounds":{"document_bytes":16777216,"sheet_cells":100000,"rows_first":2000,"rows_last":500,"rows_between":2000,"halvings":0,"cell_chars":16384,"cell_head_chars":4096},"cells_cut":0,"cells_raw":0,"read":"whole","date_system":"1900"}

{"sheet":"受講票（例）","index":0,"n_rows":69,"n_cols":9,"rows_kept":69,"cut":false,"hidden":false,"merged":[[16,1,26,1],[72,1,72,5],[73,1,73,5],[17,3,18,5],[17,2,18,2],[19,2,19,5],[33,2,33,3],[33,4,33,5],[34,1,35,5],[36,2,36,3],[36,4,36,5],[71,1,71,5],[27,1,30,1],[27,2,27,5],[28,2,28,5],[29,2,29,5],[31,3,31,5],[32,2,32,3],[12,4,12,5],[14,2,14,3],[14,4,14,5],[23,2,23,5],[25,2,25,5],[4,1,4,5],[10,4,10,5],[11,4,11,5],[1,1,2,5],[3,4,3,5]]}
[]
[null,"酒類販売管理研修受講票（例）"]
[]
[null,null,null,null,"※マーカー箇所に入力が必要となります"]
[null,"　受講票（この用紙）と本人確認証（免許証等）を受付でご提示ください。"]
[]
[]
[]
[]
[null,null,null,null,null,null,null,"印刷番号"]
[null,"受講番号",1111,"受講者名","東山　△△△",null,null,1,"名簿の№入力"]
[null,"研  修  日","2024-04-01","販売場の名称\n","リカーショップ△△△"]
[null,"受付時間","13：00　～　13：25","および所在地","金沢市東山△丁目△番△号",null,null,"※受付時間","各単組で設定"]
[null,"研修時間","13：30　～　16：00"]
[null,"研修会場","〇〇〇センター　〇階",null," 金沢市〇〇町〇番地"]
[]
[null,"受講料について","　事前振込みとさせていただきます。研修当日のお支払いは受け付けておりませんのでご注意ください。"]
[null,null,"　３月２８日（木）","中までに ２，５００円（※非課税）を下記口座へお振込みください。"]
[null,null,null,null,null,null,null,"※振込期日","入金確認が必要なため研修開催日より数日前に設定"]
[null,null,"【振込先】 北国銀行　×××支店 　 普通預金　＊＊＊＊＊＊　□□□□□コウリシュハンクミアイ　"]
[null,null," 　　・ 振込依頼人名欄に、受講者名を入れお振込みください。　 "]
[null,null," 　　・ 振込手数料はご負担願います。"]
[]
[null,null,"　※期日までに実施団体窓口に受講料を持参する場合は、現金のみの受け付けとしております。"]
[null,null,"　※期日までに入金確認が取れない場合、受講証は後日となります。"]
[null,null,"　※銀行払込記録が領収の証明となりますので、領収証の発行は致しかねます。",null,null,null,null,"※領収証","振込入金時の対応"]
[]
[null,"キャンセルについて"]
[null,null,"　キャンセルご希望の際は、 研修日の3日前までに研修実施団体へ必ずお電話にてお知らせください。　　　　　　　　　　　　　　　　　　　　　　　　　　　　　　　　　　　　　　　　",null,null,null,null,"※キャンセル","入金後のキャンセルは次回受講してもらうなどし対応"]
[null,null,"　※無断キャンセルされますと受講料は返還できない場合がございます。　",null,null,null,null,"※キャンセル料","徴収しない"]
[null,null,"  "]
[null,"研修実施団体名\n","〒920-0000","石川県金沢市〇〇町"]
[null,"及び連絡先","□□小売酒販組合　　理事長　□□　□□",null,"ＴＥＬ：","０７６-＊＊＊-＊＊＊＊"]
[null,"研修講師","□□小売酒販組合所属　講師"]
[null,"研　修　プ　ロ　グ　ラ　ム"]
[]
[null,"予定時間","項　目",null,"内　容"]
[]
[null,"13:30～","主催者 挨拶",null,"時間割及び注意事項について\n"]
[null,null,null,null,"アルコールパッチについて"]
[null,"13:40～","ビデオ上映",null,"販売管理者の役割と二十歳未満飲酒禁止方に関する\n"]
[null,null,null,null,"ビデオ上映"]
[null,null,"≪第１編≫初回受講・定期受講者共通"]
[null,"14:10～","【第１章】酒類販売管理者",null,"酒類販売管理者制度や酒類業に対する社会的要請\n"]
[null,null,"　",null,"について"]
[null,"14:30～","【第２章（第1節）】酒税法関係",null,"記帳義務や申告義務、酒税法により酒類小売業者"]
[null,null,"　",null,"に義務付けられている事項について\n"]
[null,"14:40～","【第２章（第2節）】酒類業組合法",null,"酒類容器への表示や酒類の陳列場所における表示\n"]
[null,null,"　",null,"方法等について"]
[null,"14:50～","休憩",null,null,null,null,"※休憩","適宜に行う　プログラム行程変更可"]
[]
[null,"15:00～","【第２章（第3節）】米トレーサビリティ法",null,"指定米穀等の産地情報について"]
[null,null,"【第２章（第4節）】20歳未満飲酒禁止法等",null,"二十歳未満の飲酒禁止法や酒類業界の自主的な取組\n"]
[null,null,"　",null,"について"]
[null,"15:10～","【第２章（第5節）】独占禁止法",null,"独占禁止法や景表法などについて"]
[null,null,"　"]
[null,"15:20～","【第２章（第6節）】環境関係法",null,"資源有効利用促進法や容器包装リサイクル法など"]
[null,null,"　",null,"について\n"]
[null,null,"※定期受講者終了　受講証交付"]
[]
[null,null,"≪第２編≫初回受講者（定期受講の方も引き続き受講いただけます）"]
[null,"15:30～","【第１章】酒類の商品知識等",null,"酒類の分類や酒類ごとの商品知識などについて"]
[null,null,"　"]
[null,"15:40～","【第２章】酒類と健康等",null,"酒類が人体に及ぼす影響等について"]
[]
[null,"15:50～","【第３章】参考法令",null,"飲酒運転等について"]
[]
[null,"15:55～","質疑応答",null,"研修内容について質問等"]
[null,null,"※初回受講者終了　受講証交付"]

{"sheet":"①基本情報（今回の研修に係る事項）","index":1,"n_rows":8,"n_cols":3,"rows_kept":8,"cut":false,"hidden":false,"merged":[]}
[null,"入力欄※黄色のセルをご入力ください。","例"]
["受講証発行日\n（研修開催日と同一）",null,"2016-04-01"]
["受講場所",null,"全国小売酒販会館 大会議室"]
["研修実施団体\n及び理事長名",null,"全国小売酒販組合中央会　会長　坂田　辰久"]
[]
["酒類販売管理研修受講年月日",{"$f":"+B2","v":"00:00:00"},"2016-04-01"]
["次回研修の\n有効期限※自動入力",{"$f":"IF(B6=\"\",\"\",EDATE(B6,36)-1)","v":"1902-12-30"},"2019-03-31"]
["研修実施団体名",null,"全国小売酒販組合中央会中央会"]

{"sheet":"②名簿（受講者情報を入力）","index":2,"n_rows":120,"n_cols":16,"rows_kept":120,"cut":false,"hidden":false,"merged":[[0,12,0,15],[0,0,0,2]]}
[{"$f":"+'①基本情報（今回の研修に係る事項）'!B6","v":"00:00:00"},null,null,"開催 研修受講者名簿"]
["№","受講証\n番号","研修日","所管\n税務署","酒類小売業者の\n氏名または名称","販売場の名称","郵便番号","所在地","受講者氏名","フリガナ","郵便番号","自宅住所","生年月日","役職","最終受講\n年月日","最終受講時の研修実施団体名"]
[]
[]
[]
[]
[]
[]
[null,null,null,null,null,null,null,null,null,{"$f":"PHONETIC(I9)","v":""}]
[null,null,null,null,null,null,null,null,null,{"$f":"PHONETIC(I10)","v":""}]
[null,null,null,null,null,null,null,null,null,""]
[]
[]
[]
[]
[]
[]
[]
[]
[]
[]
[]
[]
[]
[]
[]
[]
[]
[]
[]
[]
[null,null,null,null,null,null,null,null,null,""]
[null,null,null,null,null,null,null,null,null,""]
[null,null,null,null,null,null,null,null,null,""]
[null,null,null,null,null,null,null,null,null,""]
[null,null,null,null,null,null,null,null,null,""]
[null,null,null,null,null,null,null,null,null,""]
[null,null,null,null,null,null,null,null,null,""]
[null,null,null,null,null,null,null,null,null,""]
[null,null,null,null,null,null,null,null,null,""]
[null,null,null,null,null,null,null,null,null,""]
[null,null,null,null,null,null,null,null,null,""]
[null,null,null,null,null,null,null,null,null,""]
[null,null,null,null,null,null,null,null,null,""]
[null,null,null,null,null,null,null,null,null,""]
[null,null,null,null,null,null,null,null,null,""]
[null,null,null,null,null,null,null,null,null,""]
[null,null,null,null,null,null,null,null,null,""]
[null,null,null,null,null,null,null,null,null,""]
[null,null,null,null,null,null,null,null,null,""]
[null,null,null,null,null,null,null,null,null,""]
[null,null,null,null,null,null,null,null,null,""]
[null,null,null,null,null,null,null,null,null,""]
[null,null,null,null,null,null,null,null,null,""]
[null,null,null,null,null,null,null,null,null,""]
[null,null,null,null,null,null,null,null,null,""]
[null,null,null,null,null,null,null,null,null,""]
[null,null,null,null,null,null,null,null,null,""]
[null,null,null,null,null,null,null,null,null,""]
[null,null,null,null,null,null,null,null,null,""]
[null,null,null,null,null,null,null,null,null,""]
[null,null,null,null,null,null,null,null,null,""]
[null,null,null,null,null,null,null,null,null,""]
[null,null,null,null,null,null,null,null,null,""]
[null,null,null,null,null,null,null,null,null,""]
[null,null,null,null,null,null,null,null,null,""]
[null,null,null,null,null,null,null,null,null,{"$f":"PHONETIC(I67)","v":""}]
[null,null,null,null,null,null,null,null,null,""]
[null,null,null,null,null,null,null,null,null,""]
[null,null,null,null,null,null,null,null,null,""]
[null,null,null,null,null,null,null,null,null,""]
[null,null,null,null,null,null,null,null,null,""]
[null,null,null,null,null,null,null,null,null,""]
[null,null,null,null,null,null,null,null,null,""]
[null,null,null,null,null,null,null,null,null,""]
[null,null,null,null,null,null,null,null,null,""]
[null,null,null,null,null,null,null,null,null,""]
[null,null,null,null,null,null,null,null,null,""]
[null,null,null,null,null,null,null,null,null,""]
[null,null,null,null,null,null,null,null,null,""]
[null,null,null,null,null,null,null,null,null,""]
[null,null,null,null,null,null,null,null,null,""]
[null,null,null,null,null,null,null,null,null,""]
[null,null,null,null,null,null,null,null,null,""]
[null,null,null,null,null,null,null,null,null,""]
[null,null,null,null,null,null,null,null,null,""]
[null,null,null,null,null,null,null,null,null,""]
[null,null,null,null,null,null,null,null,null,""]
[null,null,null,null,null,null,null,null,null,""]
[null,null,null,null,null,null,null,null,null,""]
[null,null,null,null,null,null,null,null,null,""]
[null,null,null,null,null,null,null,null,null,""]
[null,null,null,null,null,null,null,null,null,""]
[null,null,null,null,null,null,null,null,null,{"$f":"PHONETIC(I94)","v":""}]
[null,null,null,null,null,null,null,null,null,""]
[]
[null,null,null,null,null,null,null,null,null,{"$f":"PHONETIC(I97)","v":""}]
[null,null,null,null,null,null,null,null,null,""]
[null,null,null,null,null,null,null,null,null,""]
[null,null,null,null,null,null,null,null,null,""]
[null,null,null,null,null,null,null,null,null,""]
[null,null,null,null,null,null,null,null,null,""]
[null,null,null,null,null,null,null,null,null,""]
[null,null,null,null,null,null,null,null,null,""]
[null,null,null,null,null,null,null,null,null,""]
[null,null,null,null,null,null,null,null,null,""]
[null,null,null,null,null,null,null,null,null,""]
[null,null,null,null,null,null,null,null,null,""]
[null,null,null,null,null,null,null,null,null,""]
[null,null,null,null,null,null,null,null,null,""]
[null,null,null,null,null,null,null,null,null,""]
[null,null,null,null,null,null,null,null,null,""]
[null,null,null,null,null,null,null,null,null,""]
[null,null,null,null,null,null,null,null,null,""]
[null,null,null,null,null,null,null,null,null,""]
[null,null,null,null,null,null,null,null,null,""]
[null,null,null,null,null,null,null,null,null,""]
[null,null,null,null,null,null,null,null,null,""]
[null,null,null,null,null,null,null,null,null,""]
[null,null,null,null,null,null,null,null,null,{"$f":"PHONETIC(I120)","v":""}]

{"sheet":"組合員初回","index":3,"n_rows":68,"n_cols":8,"rows_kept":68,"cut":false,"hidden":false,"merged":[[0,1,2,5],[27,2,27,5],[28,2,28,5],[26,1,29,1],[26,2,26,5],[9,4,9,5],[22,2,22,5],[24,2,24,5],[16,1,25,1],[10,4,10,5],[11,4,11,5],[13,2,13,3],[13,4,13,5],[71,1,71,5],[72,1,72,5],[70,1,70,5],[3,1,3,5],[32,4,32,5],[32,2,32,3],[31,2,31,3],[35,4,35,5],[33,1,34,5],[35,2,35,3],[30,3,30,5],[16,3,17,5],[16,2,17,2]]}
[null,"酒類販売管理研修受講票"]
[]
[]
[null,"　受講票（この用紙）と本人確認証（免許証等）を受付でご提示ください。"]
[]
[]
[]
[]
[null,null,null,null,null,null,null,"印刷番号"]
[null,"受講番号",{"$f":"VLOOKUP(H10,'②名簿（受講者情報を入力）'!A2:S121,2,0)&\"\"","v":{"$error":"#N/A"}},"受講者名",{"$f":"VLOOKUP(H10,'②名簿（受講者情報を入力）'!A2:S121,9,0)&\"\"","v":{"$error":"#N/A"}}]
[null,"研  修  日",{"$f":"+'①基本情報（今回の研修に係る事項）'!B6","v":"00:00:00"},"販売場の名称\n",{"$f":"VLOOKUP(H10,'②名簿（受講者情報を入力）'!A1:P120,6,1)","v":0}]
[null,"受付時間","～　","および所在地",{"$f":"VLOOKUP(H10,'②名簿（受講者情報を入力）'!A1:P120,8,1)","v":0}]
[null,"研修時間","13：30　～　16：00"]
[null,"研修会場",{"$f":"'①基本情報（今回の研修に係る事項）'!B3","v":0}]
[]
[null,null,"　事前振込みとさせていただきます。研修当日のお支払いは受け付けておりませんのでご注意ください。"]
[null,"受講料について","　　月　　日（　）","中までに ２，５００円（※非課税）を下記口座へお振込みください。"]
[]
[null,null," 　【振込先】 北国銀行　　　　支店 　 普通預金　　　　　　コウリシュハンクミアイ　"]
[null,null," 　　・ 振込依頼人名欄に、受講者名を入れお振込みください。　 "]
[null,null," 　　・ 振込手数料はご負担願います。"]
[]
[null,null,"　※期日までに実施団体窓口に受講料を持参する場合は、現金のみの受け付けとしております。"]
[null,null,"　※期日までに入金確認が取れない場合、受講証は後日となります。"]
[null,null,"　※銀行払込記録が領収の証明となりますので、領収証の発行は致しかねます。"]
[]
[null,"キャンセルについて"]
[null,null,"　キャンセルご希望の際は、 研修日の3日前までに研修実施団体へ必ずお電話にてお知らせください。　　　　　　　　　　　　　　　　　　　　　　　　　　　　　　　　　　　　　　　　"]
[null,null,"　※無断キャンセルされますと受講料は返還できない場合がございます。　"]
[null,null,"  "]
[null,"研修実施団体名\n","〒","石川県"]
[null,"及び連絡先",{"$f":"+'①基本情報（今回の研修に係る事項）'!B4","v":0},null,"ＴＥＬ："]
[null,"研修講師","　　小売酒販組合所属　講師"]
[null,"研　修　プ　ロ　グ　ラ　ム"]
[]
[null,"予定時間","項　目",null,"内　容"]
[]
[null,"13:30～","主催者 挨拶",null,"時間割及び注意事項について\n"]
[null,null,null,null,"アルコールパッチについて"]
[null,"13:40～","ビデオ上映",null,"販売管理者の役割と二十歳未満飲酒禁止方に関する\n"]
[null,null,null,null,"ビデオ上映"]
[null,null,"≪第１編≫初回受講・定期受講者共通"]
[null,"14:10～","【第１章】酒類販売管理者",null,"酒類販売管理者制度や酒類業に対する社会的要請\n"]
[null,null,"　",null,"について"]
[null,"14:30～","【第２章（第1節）】酒税法関係",null,"記帳義務や申告義務、酒税法により酒類小売業者"]
[null,null,"　",null,"に義務付けられている事項について\n"]
[null,"14:40～","【第２章（第2節）】酒類業組合法",null,"酒類容器への表示や酒類の陳列場所における表示\n"]
[null,null,"　",null,"方法等について"]
[null,"14:50～","休憩"]
[]
[null,"15:00～","【第２章（第3節）】米トレーサビリティ法",null,"指定米穀等の産地情報について"]
[null,null,"【第２章（第4節）】20歳未満飲酒禁止法等",null,"20歳未満の飲酒禁止法や酒類業界の自主的な取組\n"]
[null,null,"　",null,"について"]
[null,"15:10～","【第２章（第5節）】独占禁止法",null,"独占禁止法や景表法などについて"]
[null,null,"　"]
[null,"15:20～","【第２章（第6節）】環境関係法",null,"資源有効利用促進法や容器包装リサイクル法など"]
[null,null,"　",null,"について\n"]
[null,null,"※定期受講者終了　受講証交付"]
[]
[null,null,"≪第２編≫初回受講者（定期受講の方も引き続き受講いただけます）"]
[null,"15:30～","【第１章】酒類の商品知識等",null,"酒類の分類や酒類ごとの商品知識などについて"]
[null,null,"　"]
[null,"15:40～","【第２章】酒類と健康等",null,"酒類が人体に及ぼす影響等について"]
[]
[null,"15:50～","【第３章】参考法令",null,"飲酒運転等について"]
[]
[null,"15:55～","質疑応答",null,"研修内容について質問等"]
[null,null,"※初回受講者終了　受講証交付"]

{"sheet":"組合員定期","index":4,"n_rows":68,"n_cols":8,"rows_kept":68,"cut":false,"hidden":false,"merged":[[26,2,26,5],[27,2,27,5],[28,2,28,5],[0,1,2,5],[3,1,3,5],[9,4,9,5],[10,4,10,5],[11,4,11,5],[13,2,13,3],[13,4,13,5],[70,1,70,5],[71,1,71,5],[72,1,72,5],[16,2,17,2],[16,3,17,5],[30,3,30,5],[31,2,31,3],[32,2,32,3],[32,4,32,5],[33,1,34,5],[35,2,35,3],[35,4,35,5],[16,1,25,1],[22,2,22,5],[24,2,24,5],[26,1,29,1]]}
[null,"酒類販売管理研修受講票"]
[]
[]
[null,"　受講票（この用紙）と本人確認証（免許証等）を受付でご提示ください。"]
[]
[]
[]
[]
[null,null,null,null,null,null,null,"印刷番号"]
[null,"受講番号",{"$f":"VLOOKUP(H10,'②名簿（受講者情報を入力）'!A2:S121,2,0)&\"\"","v":{"$error":"#N/A"}},"受講者名",{"$f":"VLOOKUP(H10,'②名簿（受講者情報を入力）'!A2:S121,9,0)&\"\"","v":{"$error":"#N/A"}}]
[null,"研  修  日",{"$f":"+'①基本情報（今回の研修に係る事項）'!B6","v":"00:00:00"},"販売場の名称\n",{"$f":"VLOOKUP(H10,'②名簿（受講者情報を入力）'!A1:P120,6,1)","v":0}]
[null,"受付時間",{"$f":"+組合員初回!C12","v":"～　"},"および所在地",{"$f":"VLOOKUP(H10,'②名簿（受講者情報を入力）'!A1:P120,8,1)","v":0}]
[null,"研修時間","13：30　～　15：30"]
[null,"研修会場",{"$f":"'①基本情報（今回の研修に係る事項）'!B3","v":0}]
[]
[null,null,"　事前振込みとさせていただきます。研修当日のお支払いは受け付けておりませんのでご注意ください。"]
[null,"受講料について",{"$f":"+組合員初回!C17","v":"　　月　　日（　）"},"中までに ２，５００円（※非課税）を下記口座へお振込みください。"]
[]
[null,null,{"$f":"+組合員初回!C19","v":" 　【振込先】 北国銀行　　　　支店 　 普通預金　　　　　　コウリシュハンクミアイ　"}]
[null,null," 　　・ 振込依頼人名欄に、受講者名を入れお振込みください。　 "]
[null,null," 　　・ 振込手数料はご負担願います。"]
[]
[null,null,"　※期日までに実施団体窓口に受講料を持参する場合は、現金のみの受け付けとしております。"]
[null,null,"　※期日までに入金確認が取れない場合、受講証は後日となります。"]
[null,null,"　※銀行払込記録が領収の証明となりますので、領収証の発行は致しかねます。"]
[]
[null,"キャンセルについて"]
[null,null,"　キャンセルご希望の際は、 研修日の3日前までに研修実施団体へ必ずお電話にてお知らせください。　　　　　　　　　　　　　　　　　　　　　　　　　　　　　　　　　　　　　　　　"]
[null,null,"　※無断キャンセルされますと受講料は返還できない場合がございます。　"]
[null,null,"  "]
[null,"研修実施団体名\n",{"$f":"+組合員初回!C31","v":"〒"},{"$f":"+組合員初回!D31","v":"石川県"}]
[null,"及び連絡先",{"$f":"+'①基本情報（今回の研修に係る事項）'!B4","v":0},null,"ＴＥＬ：",{"$f":"+組合員初回!F32","v":0}]
[null,"研修講師",{"$f":"+組合員初回!C33","v":"　　小売酒販組合所属　講師"}]
[null,"研　修　プ　ロ　グ　ラ　ム"]
[]
[null,"予定時間","項　目",null,"内　容"]
[]
[null,"13:30～","主催者 挨拶",null,"時間割及び注意事項について\n"]
[null,null,null,null,"アルコールパッチについて"]
[null,"13:40～","ビデオ上映",null,"販売管理者の役割と二十歳未満飲酒禁止方に関する\n"]
[null,null,null,null,"ビデオ上映"]
[null,null,"≪第１編≫初回受講・定期受講者共通"]
[null,"14:10～","【第１章】酒類販売管理者",null,"酒類販売管理者制度や酒類業に対する社会的要請\n"]
[null,null,"　",null,"について"]
[null,"14:30～","【第２章（第1節）】酒税法関係",null,"記帳義務や申告義務、酒税法により酒類小売業者"]
[null,null,"　",null,"に義務付けられている事項について\n"]
[null,"14:40～","【第２章（第2節）】酒類業組合法",null,"酒類容器への表示や酒類の陳列場所における表示\n"]
[null,null,"　",null,"方法等について"]
[null,"14:50～","休憩"]
[]
[null,"15:00～","【第２章（第3節）】米トレーサビリティ法",null,"指定米穀等の産地情報について"]
[null,null,"【第２章（第4節）】20歳未満飲酒禁止法等",null,"20歳未満の飲酒禁止法や酒類業界の自主的な取組\n"]
[null,null,"　",null,"について"]
[null,"15:10～","【第２章（第5節）】独占禁止法",null,"独占禁止法や景表法などについて"]
[null,null,"　"]
[null,"15:20～","【第２章（第6節）】環境関係法",null,"資源有効利用促進法や容器包装リサイクル法など"]
[null,null,"　",null,"について\n"]
[null,null,"※定期受講者終了　受講証交付"]
[]
[null,null,"≪第２編≫初回受講者（定期受講の方も引き続き受講いただけます）"]
[null,"15:30～","【第１章】酒類の商品知識等",null,"酒類の分類や酒類ごとの商品知識などについて"]
[null,null,"　"]
[null,"15:40～","【第２章】酒類と健康等",null,"酒類が人体に及ぼす影響等について"]
[]
[null,"15:50～","【第３章】参考法令",null,"飲酒運転等について"]
[]
[null,"15:55～","質疑応答",null,"研修内容について質問等"]
[null,null,"※初回受講者終了　受講証交付"]

{"sheet":"員外初回","index":5,"n_rows":68,"n_cols":8,"rows_kept":68,"cut":false,"hidden":false,"merged":[[26,2,26,5],[27,2,27,5],[28,2,28,5],[0,1,2,5],[3,1,3,5],[9,4,9,5],[10,4,10,5],[11,4,11,5],[13,2,13,3],[13,4,13,5],[70,1,70,5],[71,1,71,5],[72,1,72,5],[16,2,17,2],[16,3,17,5],[30,3,30,5],[31,2,31,3],[32,2,32,3],[32,4,32,5],[33,1,34,5],[35,2,35,3],[35,4,35,5],[16,1,25,1],[22,2,22,5],[24,2,24,5],[26,1,29,1]]}
[null,"酒類販売管理研修受講票"]
[]
[]
[null,"　受講票（この用紙）と本人確認証（免許証等）を受付でご提示ください。"]
[]
[]
[]
[]
[null,null,null,null,null,null,null,"印刷番号"]
[null,"受講番号",{"$f":"VLOOKUP(H10,'②名簿（受講者情報を入力）'!A2:S121,2,0)&\"\"","v":{"$error":"#N/A"}},"受講者名",{"$f":"VLOOKUP(H10,'②名簿（受講者情報を入力）'!A2:S121,9,0)&\"\"","v":{"$error":"#N/A"}}]
[null,"研  修  日",{"$f":"+'①基本情報（今回の研修に係る事項）'!B6","v":"00:00:00"},"販売場の名称\n",{"$f":"VLOOKUP(H10,'②名簿（受講者情報を入力）'!A1:P120,6,1)","v":0}]
[null,"受付時間",{"$f":"+組合員初回!C12","v":"～　"},"および所在地",{"$f":"VLOOKUP(H10,'②名簿（受講者情報を入力）'!A1:P120,8,1)","v":0}]
[null,"研修時間","13：30　～　16：00"]
[null,"研修会場",{"$f":"'①基本情報（今回の研修に係る事項）'!B3","v":0}]
[]
[null,null,"　事前振込みとさせていただきます。研修当日のお支払いは受け付けておりませんのでご注意ください。"]
[null,"受講料について",{"$f":"+組合員初回!C17","v":"　　月　　日（　）"},"中までに ６，０００円（※非課税）を下記口座へお振込みください。"]
[]
[null,null,{"$f":"+組合員初回!C19","v":" 　【振込先】 北国銀行　　　　支店 　 普通預金　　　　　　コウリシュハンクミアイ　"}]
[null,null," 　　・ 振込依頼人名欄に、受講者名を入れお振込みください。　 "]
[null,null," 　　・ 振込手数料はご負担願います。"]
[]
[null,null,"　※期日までに実施団体窓口に受講料を持参する場合は、現金のみの受け付けとしております。"]
[null,null,"　※期日までに入金確認が取れない場合、受講証は後日となります。"]
[null,null,"　※銀行払込記録が領収の証明となりますので、領収証の発行は致しかねます。"]
[]
[null,"キャンセルについて"]
[null,null,"　キャンセルご希望の際は、 研修日の3日前までに研修実施団体へ必ずお電話にてお知らせください。　　　　　　　　　　　　　　　　　　　　　　　　　　　　　　　　　　　　　　　　"]
[null,null,"　※無断キャンセルされますと受講料は返還できない場合がございます。　"]
[null,null,"  "]
[null,"研修実施団体名\n",{"$f":"+組合員初回!C31","v":"〒"},{"$f":"組合員初回!D31","v":"石川県"}]
[null,"及び連絡先",{"$f":"+'①基本情報（今回の研修に係る事項）'!B4","v":0},null,"ＴＥＬ：",{"$f":"+組合員初回!F32","v":0}]
[null,"研修講師",{"$f":"+組合員初回!C33","v":"　　小売酒販組合所属　講師"}]
[null,"研　修　プ　ロ　グ　ラ　ム"]
[]
[null,"予定時間","項　目",null,"内　容"]
[]
[null,"13:30～","主催者 挨拶",null,"時間割及び注意事項について\n"]
[null,null,null,null,"アルコールパッチについて"]
[null,"13:40～","ビデオ上映",null,"販売管理者の役割と二十歳未満飲酒禁止方に関する\n"]
[null,null,null,null,"ビデオ上映"]
[null,null,"≪第１編≫初回受講・定期受講者共通"]
[null,"14:10～","【第１章】酒類販売管理者",null,"酒類販売管理者制度や酒類業に対する社会的要請\n"]
[null,null,"　",null,"について"]
[null,"14:30～","【第２章（第1節）】酒税法関係",null,"記帳義務や申告義務、酒税法により酒類小売業者"]
[null,null,"　",null,"に義務付けられている事項について\n"]
[null,"14:40～","【第２章（第2節）】酒類業組合法",null,"酒類容器への表示や酒類の陳列場所における表示\n"]
[null,null,"　",null,"方法等について"]
[null,"14:50～","休憩"]
[]
[null,"15:00～","【第２章（第3節）】米トレーサビリティ法",null,"指定米穀等の産地情報について"]
[null,null,"【第２章（第4節）】20歳未満飲酒禁止法等",null,"20歳未満の飲酒禁止法や酒類業界の自主的な取組\n"]
[null,null,"　",null,"について"]
[null,"15:10～","【第２章（第5節）】独占禁止法",null,"独占禁止法や景表法などについて"]
[null,null,"　"]
[null,"15:20～","【第２章（第6節）】環境関係法",null,"資源有効利用促進法や容器包装リサイクル法など"]
[null,null,"　",null,"について\n"]
[null,null,"※定期受講者終了　受講証交付"]
[]
[null,null,"≪第２編≫初回受講者（定期受講の方も引き続き受講いただけます）"]
[null,"15:30～","【第１章】酒類の商品知識等",null,"酒類の分類や酒類ごとの商品知識などについて"]
[null,null,"　"]
[null,"15:40～","【第２章】酒類と健康等",null,"酒類が人体に及ぼす影響等について"]
[]
[null,"15:50～","【第３章】参考法令",null,"飲酒運転等について"]
[]
[null,"15:55～","質疑応答",null,"研修内容について質問等"]
[null,null,"※初回受講者終了　受講証交付"]

{"sheet":"員外定期","index":6,"n_rows":68,"n_cols":8,"rows_kept":68,"cut":false,"hidden":false,"merged":[[26,2,26,5],[27,2,27,5],[28,2,28,5],[0,1,2,5],[3,1,3,5],[9,4,9,5],[10,4,10,5],[11,4,11,5],[13,2,13,3],[13,4,13,5],[70,1,70,5],[71,1,71,5],[72,1,72,5],[16,2,17,2],[16,3,17,5],[30,3,30,5],[31,2,31,3],[32,2,32,3],[32,4,32,5],[33,1,34,5],[35,2,35,3],[35,4,35,5],[16,1,25,1],[22,2,22,5],[24,2,24,5],[26,1,29,1]]}
[null,"酒類販売管理研修受講票"]
[]
[]
[null,"　受講票（この用紙）と本人確認証（免許証等）を受付でご提示ください。"]
[]
[]
[]
[]
[null,null,null,null,null,null,null,"印刷番号"]
[null,"受講番号",{"$f":"VLOOKUP(H10,'②名簿（受講者情報を入力）'!A2:S121,2,0)&\"\"","v":{"$error":"#N/A"}},"受講者名",{"$f":"VLOOKUP(H10,'②名簿（受講者情報を入力）'!A2:S121,9,0)&\"\"","v":{"$error":"#N/A"}}]
[null,"研  修  日",{"$f":"+'①基本情報（今回の研修に係る事項）'!B6","v":"00:00:00"},"販売場の名称\n",{"$f":"VLOOKUP(H10,'②名簿（受講者情報を入力）'!A1:P120,6,1)","v":0}]
[null,"受付時間",{"$f":"+組合員初回!C12","v":"～　"},"および所在地",{"$f":"VLOOKUP(H10,'②名簿（受講者情報を入力）'!A1:P120,8,1)","v":0}]
[null,"研修時間","13：30　～　15：30"]
[null,"研修会場",{"$f":"'①基本情報（今回の研修に係る事項）'!B3","v":0}]
[]
[null,null,"　事前振込みとさせていただきます。研修当日のお支払いは受け付けておりませんのでご注意ください。"]
[null,"受講料について",{"$f":"+組合員初回!C17","v":"　　月　　日（　）"},"中までに ６，０００円（※非課税）を下記口座へお振込みください。"]
[]
[null,null,{"$f":"+組合員初回!C19","v":" 　【振込先】 北国銀行　　　　支店 　 普通預金　　　　　　コウリシュハンクミアイ　"}]
[null,null," 　　・ 振込依頼人名欄に、受講者名を入れお振込みください。　 "]
[null,null," 　　・ 振込手数料はご負担願います。"]
[]
[null,null,"　※期日までに実施団体窓口に受講料を持参する場合は、現金のみの受け付けとしております。"]
[null,null,"　※期日までに入金確認が取れない場合、受講証は後日となります。"]
[null,null,"　※銀行払込記録が領収の証明となりますので、領収証の発行は致しかねます。"]
[]
[null,"キャンセルについて"]
[null,null,"　キャンセルご希望の際は、 研修日の3日前までに研修実施団体へ必ずお電話にてお知らせください。　　　　　　　　　　　　　　　　　　　　　　　　　　　　　　　　　　　　　　　　"]
[null,null,"　※無断キャンセルされますと受講料は返還できない場合がございます。　"]
[null,null,"  "]
[null,"研修実施団体名\n",{"$f":"+組合員初回!C31","v":"〒"},{"$f":"+組合員初回!D31","v":"石川県"}]
[null,"及び連絡先",{"$f":"+'①基本情報（今回の研修に係る事項）'!B4","v":0},null,"ＴＥＬ：",{"$f":"+組合員初回!F32","v":0}]
[null,"研修講師",{"$f":"+組合員初回!C33","v":"　　小売酒販組合所属　講師"}]
[null,"研　修　プ　ロ　グ　ラ　ム"]
[]
[null,"予定時間","項　目",null,"内　容"]
[]
[null,"13:30～","主催者 挨拶",null,"時間割及び注意事項について\n"]
[null,null,null,null,"アルコールパッチについて"]
[null,"13:40～","ビデオ上映",null,"販売管理者の役割と二十歳未満飲酒禁止方に関する\n"]
[null,null,null,null,"ビデオ上映"]
[null,null,"≪第１編≫初回受講・定期受講者共通"]
[null,"14:10～","【第１章】酒類販売管理者",null,"酒類販売管理者制度や酒類業に対する社会的要請\n"]
[null,null,"　",null,"について"]
[null,"14:30～","【第２章（第1節）】酒税法関係",null,"記帳義務や申告義務、酒税法により酒類小売業者"]
[null,null,"　",null,"に義務付けられている事項について\n"]
[null,"14:40～","【第２章（第2節）】酒類業組合法",null,"酒類容器への表示や酒類の陳列場所における表示\n"]
[null,null,"　",null,"方法等について"]
[null,"14:50～","休憩"]
[]
[null,"15:00～","【第２章（第3節）】米トレーサビリティ法",null,"指定米穀等の産地情報について"]
[null,null,"【第２章（第4節）】20歳未満飲酒禁止法等",null,"20歳未満の飲酒禁止法や酒類業界の自主的な取組\n"]
[null,null,"　",null,"について"]
[null,"15:10～","【第２章（第5節）】独占禁止法",null,"独占禁止法や景表法などについて"]
[null,null,"　"]
[null,"15:20～","【第２章（第6節）】環境関係法",null,"資源有効利用促進法や容器包装リサイクル法など"]
[null,null,"　",null,"について\n"]
[null,null,"※定期受講者終了　受講証交付"]
[]
[null,null,"≪第２編≫初回受講者（定期受講の方も引き続き受講いただけます）"]
[null,"15:30～","【第１章】酒類の商品知識等",null,"酒類の分類や酒類ごとの商品知識などについて"]
[null,null,"　"]
[null,"15:40～","【第２章】酒類と健康等",null,"酒類が人体に及ぼす影響等について"]
[]
[null,"15:50～","【第３章】参考法令",null,"飲酒運転等について"]
[]
[null,"15:55～","質疑応答",null,"研修内容について質問等"]
[null,null,"※初回受講者終了　受講証交付"]